[Event "Championnat d'Europe de Blitz"]
[Date "2024.12.09"]
[White "Meyer, Falko"]
[Black "Guliyev, Namig"]
[WhiteElo "2215"]
[BlackElo "2484"]
[Round "12.34"]
[Result "0-1"]
[TimeControl "180+2"]

1. d4 {[%emt 00:16:58] [%clk 00:03:02]} d5 {[%emt 00:00:02] [%clk 00:03:02]} 2.
Nc3 {[%emt 00:00:05] [%clk 00:03:01]} Bf5 {[%emt 00:00:02] [%clk 00:03:02]} 3.
Bf4 {[%emt 00:00:02] [%clk 00:03:01]} e6 {[%emt 00:00:02] [%clk 00:03:02]} 4. e3
{[%emt 00:00:01] [%clk 00:03:02]} Bb4 {[%emt 00:00:02] [%clk 00:03:02]} 5. Bd3
{[%emt 00:00:02] [%clk 00:03:03]} Bxc3+ {[%emt 00:00:03] [%clk 00:03:00]} 6.
bxc3 {[%emt 00:00:02] [%clk 00:03:04]} Bg6 {[%emt 00:00:02] [%clk 00:03:00]} 7.
c4 {[%emt 00:00:04] [%clk 00:03:02]} Nd7 {[%emt 00:00:02] [%clk 00:02:59]} 8.
cxd5 {[%emt 00:00:03] [%clk 00:03:01]} exd5 {[%emt 00:00:01] [%clk 00:03:00]} 9.
c4 {[%emt 00:00:05] [%clk 00:02:58]} c5 {[%emt 00:00:16] [%clk 00:02:46]} 10.
Nf3 {[%emt 00:00:12] [%clk 00:02:48]} Qa5+ {[%emt 00:00:02] [%clk 00:02:46]} 11.
Qd2 {[%emt 00:00:01] [%clk 00:02:49]} Qxd2+ {[%emt 00:00:10] [%clk 00:02:38]}
12. Kxd2 {[%emt 00:00:02] [%clk 00:02:49]} Bxd3 {[%emt 00:00:04] [%clk
00:02:35]} 13. Kxd3 {[%emt 00:00:02] [%clk 00:02:50]} dxc4+ {[%emt 00:00:02]
[%clk 00:02:36]} 14. Kxc4 {[%emt 00:00:01] [%clk 00:02:50]} cxd4 {[%emt
00:00:01] [%clk 00:02:37]} 15. Nxd4 {[%emt 00:00:08] [%clk 00:02:44]} Rc8+
{[%emt 00:00:02] [%clk 00:02:36]} 16. Kb4 {[%emt 00:00:09] [%clk 00:02:37]} Ne7
{[%emt 00:00:20] [%clk 00:02:18]} 17. Rac1 {[%emt 00:00:12] [%clk 00:02:27]}
Nd5+ {[%emt 00:00:11] [%clk 00:02:08]} 18. Ka3 {[%emt 00:00:02] [%clk 00:02:27]}
O-O {[%emt 00:00:20] [%clk 00:01:51]} 19. Bg3 {[%emt 00:00:04] [%clk 00:02:25]}
N7b6 {[%emt 00:00:35] [%clk 00:01:18]} 20. Rhd1 {[%emt 00:00:13] [%clk
00:02:14]} a6 {[%emt 00:00:05] [%clk 00:01:15]} 21. Nf5 {[%emt 00:00:20] [%clk
00:01:56]} Rc4 {[%emt 00:01:01] [%clk 00:00:16]} 22. Rxc4 {[%emt 00:00:07] [%clk
00:01:51]} Nxc4+ {[%emt 00:00:01] [%clk 00:00:17]} 23. Kb3 {[%emt 00:00:01]
[%clk 00:01:52]} Na5+ {[%clk 00:00:18]} 24. Kb2 {[%emt 00:00:03] [%clk
00:01:51]} Nb6 {[%emt 00:00:03] [%clk 00:00:18]} 25. Bc7 {[%emt 00:00:12] [%clk
00:01:41]} Nbc4+ {[%clk 00:00:19]} 26. Kb1 {[%emt 00:00:04] [%clk 00:01:39]} b5
{[%emt 00:00:02] [%clk 00:00:18]} 27. Bxa5 {[%emt 00:00:04] [%clk 00:01:38]}
Nxa5 {[%emt 00:00:01] [%clk 00:00:19]} 28. Rd6 {[%clk 00:01:39]} Ra8 {[%emt
00:00:01] [%clk 00:00:19]} 29. Ne7+ {[%emt 00:00:04] [%clk 00:01:37]} Kf8 {[%emt
00:00:02] [%clk 00:00:20]} 30. Nd5 {[%emt 00:00:01] [%clk 00:01:38]} Nc4 {[%emt
00:00:02] [%clk 00:00:20]} 31. Rd7 {[%emt 00:00:02] [%clk 00:01:38]} h6 {[%emt
00:00:03] [%clk 00:00:19]} 32. Kc2 {[%emt 00:00:03] [%clk 00:01:36]} a5 {[%emt
00:00:03] [%clk 00:00:19]} 33. Rb7 {[%emt 00:00:04] [%clk 00:01:34]} b4 {[%emt
00:00:02] [%clk 00:00:19]} 34. Kd3 {[%emt 00:00:06]} Ne5+ {[%clk 00:00:18]} 35.
Ke4 {[%emt 00:00:01] [%clk 00:01:33]} Ng4 {[%emt 00:00:01] [%clk 00:00:19]} 36.
f3 {[%emt 00:00:05] [%clk 00:01:30]} Nxh2 {[%emt 00:00:01] [%clk 00:00:20]} 37.
Nb6 {[%emt 00:00:04] [%clk 00:01:28]} Re8+ {[%emt 00:00:02] [%clk 00:00:20]} 38.
Kd3 {[%emt 00:00:03] [%clk 00:01:28]} Nf1 {[%emt 00:00:03] [%clk 00:00:18]} 39.
e4 {[%emt 00:00:01] [%clk 00:01:29]} Rd8+ {[%emt 00:00:02] [%clk 00:00:18]} 40.
Ke2 {[%emt 00:00:01] [%clk 00:01:30]} Ng3+ {[%emt 00:00:02] [%clk 00:00:17]} 41.
Kf2 {[%clk 00:01:32]} Nh5 {[%emt 00:00:01] [%clk 00:00:17]} 42. Nd7+ {[%emt
00:00:01] [%clk 00:01:33]} Kg8 {[%emt 00:00:02] [%clk 00:00:18]} 43. Ne5 {[%emt
00:00:02] [%clk 00:01:33]} Rd2+ {[%emt 00:00:04] [%clk 00:00:16]} 44. Ke3 {[%emt
00:00:01] [%clk 00:01:34]} Rxa2 {[%emt 00:00:03] [%clk 00:00:15]} 45. Rb8+
{[%emt 00:00:01] [%clk 00:01:34]} Kh7 {[%emt 00:00:02] [%clk 00:00:16]} 46. Nxf7
{[%clk 00:01:35]} Rxg2 {[%emt 00:00:02] [%clk 00:00:15]} 47. Ra8 {[%emt
00:00:05] [%clk 00:01:32]} Ra2 {[%emt 00:00:03] [%clk 00:00:14]} 48. f4 {[%emt
00:00:01] [%clk 00:01:33]} Ra3+ {[%clk 00:00:15]} 49. Kd4 {[%emt 00:00:01] [%clk
00:01:33]} Nxf4 {[%emt 00:00:03] [%clk 00:00:14]} 50. Rh8+ {[%emt 00:00:09]
[%clk 00:01:26]} Kg6 {[%emt 00:00:01] [%clk 00:00:15]} 51. Ne5+ {[%clk
00:01:27]} Kh5 {[%clk 00:00:16]} 52. Ra8 {[%emt 00:00:05] [%clk 00:01:24]} b3
{[%emt 00:00:02] [%clk 00:00:16]} 53. Rb8 {[%emt 00:00:01] [%clk 00:01:25]} a4
{[%clk 00:00:17]} 54. Rb5 {[%clk 00:01:26]} g5 {[%emt 00:00:02] [%clk 00:00:17]}
55. Ra5 {[%emt 00:00:03]} Ra1 {[%clk 00:00:18]} 56. Kc3 {[%emt 00:00:04] [%clk
00:01:25]} Ne2+ {[%emt 00:00:02] [%clk 00:00:17]} 57. Kd2 {[%emt 00:00:03] [%clk
00:01:24]} b2 {[%emt 00:00:01] [%clk 00:00:18]} 0-1

[Site "Europe Echecs"]

[Event "Championnat d'Europe de Blitz"]
[Date "2024.12.09"]
[White "Mohammad, Fahim"]
[Black "Dragnev, Valentin"]
[WhiteElo "2196"]
[BlackElo "2563"]
[Round "12.35"]
[Result "0-1"]
[TimeControl "180+2"]

1. d4 {[%emt 00:00:02] [%clk 00:03:02]} d5 {[%emt 00:00:02] [%clk 00:03:03]} 2.
c4 {[%clk 00:03:03]} e6 {[%emt 00:00:01] [%clk 00:03:04]} 3. Nf3 {[%emt
00:00:02] [%clk 00:03:03]} a6 {[%emt 00:00:02] [%clk 00:03:04]} 4. e3 {[%emt
00:00:18] [%clk 00:02:47]} Nf6 {[%emt 00:00:03] [%clk 00:03:03]} 5. Bd3 {[%emt
00:00:04] [%clk 00:02:46]} dxc4 {[%emt 00:00:02] [%clk 00:03:03]} 6. Bxc4 {[%clk
00:02:47]} b5 {[%emt 00:00:02] [%clk 00:03:04]} 7. Bd3 {[%emt 00:00:13] [%clk
00:02:36]} Bb7 {[%emt 00:00:01] [%clk 00:03:04]} 8. a4 {[%emt 00:00:09] [%clk
00:02:29]} b4 {[%emt 00:00:03] [%clk 00:03:03]} 9. Nbd2 {[%emt 00:00:02] [%clk
00:02:28]} c5 {[%emt 00:00:03] [%clk 00:03:02]} 10. O-O {[%emt 00:00:45] [%clk
00:01:44]} Nc6 {[%emt 00:00:05] [%clk 00:03:00]} 11. Nb3 {[%emt 00:00:12] [%clk
00:01:34]} cxd4 {[%emt 00:00:05] [%clk 00:02:57]} 12. Nbxd4 {[%emt 00:00:08]
[%clk 00:01:28]} Nxd4 {[%emt 00:00:02] [%clk 00:02:57]} 13. Nxd4 {[%emt
00:00:03] [%clk 00:01:27]} Bd6 {[%emt 00:00:09] [%clk 00:02:51]} 14. Qe2 {[%emt
00:00:06] [%clk 00:01:23]} O-O {[%emt 00:00:05] [%clk 00:02:48]} 15. Rd1 {[%clk
00:01:24]} Qc7 {[%emt 00:00:09] [%clk 00:02:41]} 16. h3 {[%emt 00:00:05] [%clk
00:01:21]} Rfc8 {[%emt 00:00:38] [%clk 00:02:04]} 17. e4 {[%emt 00:00:05] [%clk
00:01:18]} Nd7 {[%emt 00:00:15] [%clk 00:01:52]} 18. Be3 {[%emt 00:00:11] [%clk
00:01:10]} Ne5 {[%emt 00:00:02] [%clk 00:01:51]} 19. Rac1 {[%emt 00:00:02] [%clk
00:01:09]} Qa5 {[%emt 00:00:05] [%clk 00:01:48]} 20. Bc2 {[%emt 00:00:14] [%clk
00:00:57]} Bf8 {[%emt 00:00:37] [%clk 00:01:13]} 21. Nb3 {[%emt 00:00:28] [%clk
00:00:31]} Qc7 {[%emt 00:00:09] [%clk 00:01:06]} 22. Bb1 {[%emt 00:00:07] [%clk
00:00:26]} Qe7 {[%emt 00:00:05] [%clk 00:01:03]} 23. Kh1 {[%emt 00:00:03] [%clk
00:00:25]} h6 {[%emt 00:00:08] [%clk 00:00:57]} 24. f4 {[%emt 00:00:08] [%clk
00:00:19]} Ng6 {[%emt 00:00:01] [%clk 00:00:58]} 25. Qf2 {[%emt 00:00:04] [%clk
00:00:17]} Rxc1 {[%emt 00:00:18] [%clk 00:00:42]} 26. Rxc1 {[%emt 00:00:01]
[%clk 00:00:18]} Qd7 {[%emt 00:00:01] [%clk 00:00:43]} 27. Nc5 {[%emt 00:00:03]
[%clk 00:00:17]} Bxc5 {[%emt 00:00:03] [%clk 00:00:42]} 28. Rxc5 {[%emt
00:00:09] [%clk 00:00:10]} Qxa4 {[%emt 00:00:11] [%clk 00:00:33]} 29. Bc2 {[%emt
00:00:04] [%clk 00:00:07]} b3 {[%emt 00:00:04] [%clk 00:00:31]} 30. Bb1 {[%emt
00:00:02] [%clk 00:00:07]} Bxe4 {[%emt 00:00:01] [%clk 00:00:31]} 31. Bxe4
{[%emt 00:00:06] [%clk 00:00:04]} Qxe4 {[%emt 00:00:02]} 32. Rc7 {[%clk
00:00:05]} a5 {[%emt 00:00:06] [%clk 00:00:29]} 33. Kh2 {[%emt 00:00:02] [%clk
00:00:05]} a4 {[%clk 00:00:30]} 34. Bc5 {[%emt 00:00:03] [%clk 00:00:05]} Qxf4+
{[%emt 00:00:02] [%clk 00:00:30]} 35. Qxf4 {[%emt 00:00:01] [%clk 00:00:05]}
Nxf4 {[%clk 00:00:31]} 36. Ba3 {[%emt 00:00:01] [%clk 00:00:06]} Nd5 {[%emt
00:00:08] [%clk 00:00:25]} 37. Rb7 {[%emt 00:00:01] [%clk 00:00:07]} Ne3 {[%emt
00:00:02] [%clk 00:00:25]} 38. Kg3 {[%emt 00:00:03] [%clk 00:00:06]} Nc4 {[%emt
00:00:02] [%clk 00:00:26]} 39. Bc5 {[%emt 00:00:03] [%clk 00:00:05]} Nxb2 {[%emt
00:00:01] [%clk 00:00:26]} 0-1

[Site "Europe Echecs"]

[Event "Championnat d'Europe de Blitz"]
[Date "2024.12.09"]
[White "Baskin, Robert"]
[Black "Tudor, Henry Edward"]
[WhiteElo "2442"]
[BlackElo "2375"]
[Round "12.36"]
[Result "0-1"]
[TimeControl "180+2"]

1. c4 {[%emt 00:00:01] [%clk 00:03:02]} Nf6 {[%emt 00:00:03] [%clk 00:03:03]} 2.
g3 {[%clk 00:03:03]} e6 {[%clk 00:03:04]} 3. Bg2 {[%emt 00:00:01] [%clk
00:03:04]} d5 {[%clk 00:03:05]} 4. Nf3 {[%emt 00:00:01]} Be7 5. O-O {[%emt
00:00:01] [%clk 00:03:05]} O-O {[%emt 00:00:01] [%clk 00:03:08]} 6. b3 {[%clk
00:03:06]} d4 {[%emt 00:00:01] [%clk 00:03:10]} 7. e3 {[%emt 00:00:03] [%clk
00:03:05]} c5 {[%emt 00:00:01] [%clk 00:03:11]} 8. Ne5 {[%emt 00:00:01] [%clk
00:03:05]} Qc7 {[%emt 00:00:03] [%clk 00:03:10]} 9. f4 {[%emt 00:00:01] [%clk
00:03:06]} Nbd7 {[%emt 00:00:03] [%clk 00:03:08]} 10. Nd3 {[%emt 00:00:03] [%clk
00:03:05]} e5 {[%emt 00:00:01] [%clk 00:03:10]} 11. Na3 {[%emt 00:00:10] [%clk
00:02:57]} a6 {[%emt 00:00:15] [%clk 00:02:57]} 12. Bb2 {[%emt 00:00:06] [%clk
00:02:53]} Re8 {[%emt 00:00:06] [%clk 00:02:53]} 13. fxe5 Nxe5 {[%clk 00:02:54]}
14. Nxe5 {[%emt 00:00:02] [%clk 00:02:36]} Qxe5 {[%clk 00:02:55]} 15. Nc2 {[%emt
00:00:08] [%clk 00:02:30]} Bg4 {[%emt 00:00:50] [%clk 00:02:07]} 16. Bf3 {[%emt
00:00:29] [%clk 00:02:03]} Bh3 {[%emt 00:00:47] [%clk 00:01:22]} 17. exd4 {[%emt
00:00:41] [%clk 00:01:24]} cxd4 {[%emt 00:00:10] [%clk 00:01:15]} 18. Bxd4
{[%emt 00:00:01] [%clk 00:01:25]} Bc5 {[%emt 00:00:51] [%clk 00:00:26]} 19. Bxc5
{[%emt 00:00:02] [%clk 00:01:25]} Qxc5+ {[%emt 00:00:11] [%clk 00:00:17]} 20. d4
{[%clk 00:01:26]} Qg5 {[%clk 00:00:18]} 21. Re1 {[%emt 00:00:29] [%clk
00:01:00]} h5 {[%emt 00:00:03] [%clk 00:00:17]} 22. Bg2 {[%emt 00:00:33] [%clk
00:00:29]} Bg4 {[%emt 00:00:02] [%clk 00:00:17]} 23. Qd3 {[%emt 00:00:01] [%clk
00:00:30]} Bf5 {[%clk 00:00:18]} 24. Qc3 {[%emt 00:00:02] [%clk 00:00:29]} h4
{[%emt 00:00:04] [%clk 00:00:17]} 25. gxh4 {[%emt 00:00:08] [%clk 00:00:23]}
Qxh4 {[%emt 00:00:02] [%clk 00:00:17]} 26. Ne3 {[%emt 00:00:02] [%clk 00:00:23]}
Be4 {[%emt 00:00:03] [%clk 00:00:16]} 27. Re2 {[%emt 00:00:06]} Rad8 {[%emt
00:00:05] [%clk 00:00:13]} 28. Rf1 {[%emt 00:00:02] [%clk 00:00:19]} Qg5 {[%emt
00:00:09] [%clk 00:00:05]} 29. Rff2 {[%emt 00:00:10] [%clk 00:00:12]} Bc6 {[%emt
00:00:03] [%clk 00:00:05]} 30. d5 {[%clk 00:00:12]} Ne4 {[%clk 00:00:06]} 31.
Qd4 {[%emt 00:00:03] [%clk 00:00:11]} Nxf2 {[%emt 00:00:02] [%clk 00:00:07]} 32.
Rxf2 {[%clk 00:00:12]} Qxe3 {[%emt 00:00:02] [%clk 00:00:07]} 33. Qxe3 {[%emt
00:00:02] [%clk 00:00:12]} Rxe3 {[%clk 00:00:08]} 34. dxc6 {[%clk 00:00:14]}
Rd1+ {[%clk 00:00:09]} 35. Rf1 {[%emt 00:00:03] [%clk 00:00:13]} Rxf1+ {[%emt
00:00:02] [%clk 00:00:09]} 36. Kxf1 {[%emt 00:00:02] [%clk 00:00:13]} bxc6
{[%emt 00:00:03] [%clk 00:00:08]} 37. Bxc6 {[%emt 00:00:01] [%clk 00:00:14]} Rc3
{[%emt 00:00:01] [%clk 00:00:08]} 38. Be4 {[%emt 00:00:03] [%clk 00:00:13]} Kf8
{[%emt 00:00:07] [%clk 00:00:03]} 39. Ke2 {[%clk 00:00:15]} Ke7 {[%clk
00:00:05]} 40. Bd3 {[%emt 00:00:05] [%clk 00:00:12]} Rc1 {[%emt 00:00:02] [%clk
00:00:05]} 41. b4 {[%emt 00:00:02] [%clk 00:00:12]} Ra1 {[%emt 00:00:02] [%clk
00:00:05]} 42. Ke3 {[%emt 00:00:04] [%clk 00:00:10]} Rxa2 {[%emt 00:00:01] [%clk
00:00:06]} 43. h4 {[%clk 00:00:11]} Rb2 {[%emt 00:00:02] [%clk 00:00:07]} 44. b5
{[%emt 00:00:01] [%clk 00:00:12]} axb5 {[%clk 00:00:08]} 45. cxb5 {[%clk
00:00:13]} Rb4 {[%clk 00:00:10]} 46. h5 {[%emt 00:00:02] [%clk 00:00:13]} Kd6
{[%emt 00:00:02] [%clk 00:00:10]} 47. Kd2 {[%emt 00:00:03] [%clk 00:00:12]} Rh4
{[%emt 00:00:02] [%clk 00:00:10]} 48. Be2 {[%clk 00:00:14]} Kc5 {[%clk
00:00:12]} 49. Ke3 {[%emt 00:00:01] [%clk 00:00:14]} Rb4 {[%emt 00:00:07] [%clk
00:00:07]} 50. Bd3 {[%emt 00:00:06] [%clk 00:00:10]} Kd5 {[%clk 00:00:08]} 51.
Be2 {[%emt 00:00:02] [%clk 00:00:11]} Ke5 {[%emt 00:00:01] [%clk 00:00:09]} 52.
Kd2 {[%emt 00:00:05] [%clk 00:00:08]} Rb2+ {[%emt 00:00:01] [%clk 00:00:10]} 53.
Ke3 {[%emt 00:00:02] [%clk 00:00:08]} Rb3+ {[%clk 00:00:11]} 54. Kd2 {[%emt
00:00:01] [%clk 00:00:09]} Kd4 {[%emt 00:00:01] [%clk 00:00:11]} 55. Kc2 {[%emt
00:00:01] [%clk 00:00:10]} Rb4 {[%emt 00:00:01] [%clk 00:00:12]} 56. Bf1 {[%emt
00:00:03] [%clk 00:00:09]} Kc5 {[%emt 00:00:03] [%clk 00:00:12]} 57. Kc3 {[%emt
00:00:02] [%clk 00:00:09]} Rh4 {[%emt 00:00:01] [%clk 00:00:12]} 58. Be2 {[%clk
00:00:11]} Rh3+ {[%clk 00:00:14]} 59. Kd2 {[%emt 00:00:02] [%clk 00:00:11]} Ra3
{[%emt 00:00:03] [%clk 00:00:12]} 60. Bd3 {[%emt 00:00:02] [%clk 00:00:12]} Kd4
{[%clk 00:00:13]} 61. Be2 {[%emt 00:00:04] [%clk 00:00:10]} Ra2+ {[%emt
00:00:02]} 62. Kd1 Rb2 {[%emt 00:00:03] [%clk 00:00:13]} 63. Bf1 {[%emt
00:00:03] [%clk 00:00:10]} Rb1+ {[%clk 00:00:14]} 64. Ke2 {[%clk 00:00:11]} Rxb5
{[%clk 00:00:15]} 0-1

[Site "Europe Echecs"]

[Event "Championnat d'Europe de Blitz"]
[Date "2024.12.09"]
[White "Veljanoski, Andrej"]
[Black "Cvitan, Ognjen"]
[WhiteElo "2304"]
[BlackElo "2413"]
[Round "12.37"]
[Result "1/2-1/2"]
[TimeControl "180+2"]

1. e4 {[%clk 00:03:01]} c5 {[%emt 00:00:02] [%clk 00:03:03]} 2. Nf3 {[%emt
00:00:01] [%clk 00:03:02]} Nc6 {[%clk 00:03:05]} 3. d4 {[%clk 00:03:03]} cxd4
{[%clk 00:03:06]} 4. Nxd4 {[%clk 00:03:05]} e5 {[%clk 00:03:07]} 5. Nb5 {[%emt
00:00:05] [%clk 00:03:02]} d6 {[%emt 00:00:02] [%clk 00:03:07]} 6. N1c3 {[%emt
00:00:24] [%clk 00:02:40]} a6 {[%emt 00:00:04] [%clk 00:03:05]} 7. Na3 {[%emt
00:00:01] [%clk 00:02:41]} Be7 {[%emt 00:00:06] [%clk 00:03:01]} 8. Nc4 {[%emt
00:00:03] [%clk 00:02:41]} b5 {[%emt 00:00:02] [%clk 00:03:01]} 9. Ne3 {[%clk
00:02:41]} Nf6 {[%emt 00:00:04] [%clk 00:02:58]} 10. Bd3 {[%emt 00:00:04] [%clk
00:02:39]} O-O {[%emt 00:00:03] [%clk 00:02:58]} 11. O-O {[%emt 00:00:02] [%clk
00:02:39]} Nb4 {[%emt 00:00:03] [%clk 00:02:57]} 12. a4 {[%emt 00:00:23] [%clk
00:02:18]} Nxd3 {[%emt 00:00:15] [%clk 00:02:44]} 13. Qxd3 {[%emt 00:00:02]
[%clk 00:02:18]} Bb7 {[%emt 00:00:09] [%clk 00:02:37]} 14. Ncd5 {[%emt 00:00:27]
[%clk 00:01:53]} Nxd5 {[%emt 00:00:04] [%clk 00:02:35]} 15. Nxd5 {[%emt
00:00:01] [%clk 00:01:54]} Bxd5 {[%emt 00:00:21] [%clk 00:02:16]} 16. Qxd5
{[%emt 00:00:01] [%clk 00:01:55]} b4 {[%emt 00:00:11] [%clk 00:02:07]} 17. Bd2
{[%emt 00:00:03] [%clk 00:01:54]} a5 {[%emt 00:00:01] [%clk 00:02:08]} 18. c3
{[%emt 00:00:01] [%clk 00:01:54]} bxc3 {[%clk 00:02:09]} 19. Bxc3 {[%emt
00:00:02] [%clk 00:01:54]} Qb6 {[%emt 00:00:04] [%clk 00:02:07]} 20. Kh1 {[%emt
00:00:15] [%clk 00:01:41]} Rfc8 {[%emt 00:00:05] [%clk 00:02:04]} 21. f4 {[%emt
00:00:14] [%clk 00:01:30]} Bf6 {[%emt 00:00:30] [%clk 00:01:36]} 22. Rad1 {[%emt
00:00:14] [%clk 00:01:18]} Qc6 {[%emt 00:00:18] [%clk 00:01:21]} 23. fxe5 {[%emt
00:00:27] [%clk 00:00:52]} dxe5 {[%emt 00:00:05] [%clk 00:01:17]} 24. Bxe5
{[%emt 00:00:06] [%clk 00:00:49]} Qxd5 {[%emt 00:00:10] [%clk 00:01:10]} 25.
Rxd5 {[%emt 00:00:01] [%clk 00:00:49]} Bxe5 {[%emt 00:00:02] [%clk 00:01:10]}
26. Rxe5 {[%emt 00:00:01] [%clk 00:00:50]} Re8 {[%emt 00:00:17] [%clk 00:00:55]}
27. Rff5 {[%emt 00:00:17] [%clk 00:00:35]} g6 {[%emt 00:00:20] [%clk 00:00:37]}
28. Rxe8+ {[%emt 00:00:02] [%clk 00:00:35]} Rxe8 {[%clk 00:00:38]} 29. Rxa5
{[%emt 00:00:04] [%clk 00:00:33]} Rxe4 {[%clk 00:00:40]} 30. h3 {[%emt 00:00:01]
[%clk 00:00:33]} Rb4 {[%clk 00:00:41]} 31. Rb5 {[%emt 00:00:05] [%clk 00:00:31]}
Rxa4 {[%emt 00:00:01] [%clk 00:00:42]} 32. Kh2 {[%emt 00:00:03] [%clk 00:00:30]}
h5 {[%emt 00:00:02] [%clk 00:00:42]} 1/2-1/2

[Site "Europe Echecs"]

[Event "Championnat d'Europe de Blitz"]
[Date "2024.12.09"]
[White "Krallis, Christos"]
[Black "Kiratzopoulos, Efthimios"]
[WhiteElo "2383"]
[BlackElo "2193"]
[Round "12.38"]
[Result "1/2-1/2"]
[TimeControl "180+2"]

1. e4 {[%emt 00:00:03] [%clk 00:03:01]} g6 {[%emt 00:00:04]} 2. d4 {[%clk
00:03:01]} Bg7 {[%clk 00:03:04]} 3. Nc3 {[%emt 00:00:02] [%clk 00:03:01]} d6
{[%emt 00:00:01] [%clk 00:03:05]} 4. Be3 {[%emt 00:00:05] [%clk 00:02:58]} c6
{[%emt 00:00:01] [%clk 00:03:06]} 5. h4 {[%emt 00:00:16] [%clk 00:02:44]} h5
{[%emt 00:00:02] [%clk 00:03:06]} 6. Nf3 {[%emt 00:00:02] [%clk 00:02:44]} Bg4
{[%emt 00:00:02] [%clk 00:03:06]} 7. Be2 {[%emt 00:00:08] [%clk 00:02:38]} Nf6
{[%emt 00:00:04] [%clk 00:03:04]} 8. e5 {[%emt 00:00:04] [%clk 00:02:36]} Nd5
{[%emt 00:00:06] [%clk 00:03:01]} 9. Nxd5 {[%emt 00:00:09] [%clk 00:02:28]} cxd5
{[%emt 00:00:01] [%clk 00:03:02]} 10. Ng5 {[%emt 00:00:37] [%clk 00:01:53]} Bxe2
{[%emt 00:00:11] [%clk 00:02:52]} 11. Qxe2 {[%emt 00:00:02] [%clk 00:01:53]}
dxe5 {[%emt 00:00:24] [%clk 00:02:31]} 12. dxe5 {[%emt 00:00:02] [%clk
00:01:53]} e6 {[%emt 00:00:16] [%clk 00:02:17]} 13. O-O-O {[%emt 00:00:09] [%clk
00:01:46]} Nc6 {[%emt 00:00:03] [%clk 00:02:16]} 14. f4 {[%emt 00:00:01] [%clk
00:01:46]} Qa5 {[%emt 00:00:09] [%clk 00:02:10]} 15. Kb1 {[%emt 00:00:01] [%clk
00:01:47]} Rc8 {[%emt 00:00:03] [%clk 00:02:09]} 16. c3 {[%emt 00:00:11] [%clk
00:01:38]} Bh6 {[%emt 00:00:31] [%clk 00:01:40]} 17. g4 {[%emt 00:00:02] [%clk
00:01:38]} Bxg5 {[%emt 00:00:06] [%clk 00:01:36]} 18. hxg5 {[%emt 00:00:02]
[%clk 00:01:38]} Qa4 {[%emt 00:00:17] [%clk 00:01:21]} 19. Bd4 {[%emt 00:00:23]
[%clk 00:01:17]} h4 {[%emt 00:00:02] [%clk 00:01:21]} 20. f5 {[%emt 00:00:02]
[%clk 00:01:17]} Nxd4 {[%emt 00:00:13] [%clk 00:01:10]} 21. Rxd4 {[%emt
00:00:05] [%clk 00:01:14]} Rc4 {[%emt 00:00:03] [%clk 00:01:09]} 22. Qf2 {[%emt
00:00:18] [%clk 00:00:57]} Rxd4 {[%emt 00:00:05] [%clk 00:01:07]} 23. cxd4
{[%emt 00:00:06] [%clk 00:00:53]} exf5 {[%emt 00:00:09] [%clk 00:01:00]} 24.
gxf5 {[%emt 00:00:05] [%clk 00:00:50]} gxf5 {[%emt 00:00:05] [%clk 00:00:57]}
25. Rc1 {[%emt 00:00:06] [%clk 00:00:46]} Qd7 {[%emt 00:00:11] [%clk 00:00:48]}
26. g6 {[%emt 00:00:12] [%clk 00:00:36]} fxg6 {[%emt 00:00:03] [%clk 00:00:47]}
27. e6 {[%clk 00:00:37]} Qxe6 {[%emt 00:00:19] [%clk 00:00:31]} 28. Re1 {[%clk
00:00:38]} Qe4+ {[%clk 00:00:32]} 29. Rxe4+ {[%emt 00:00:02] [%clk 00:00:39]}
dxe4 {[%emt 00:00:02] [%clk 00:00:31]} 30. Qh2 {[%emt 00:00:03] [%clk 00:00:38]}
Kd7 {[%emt 00:00:04] [%clk 00:00:29]} 31. Qe5 {[%emt 00:00:03] [%clk 00:00:37]}
Rh7 {[%emt 00:00:02] [%clk 00:00:29]} 32. d5 {[%emt 00:00:04] [%clk 00:00:36]}
Re7 {[%emt 00:00:01] [%clk 00:00:28]} 33. Qf6 {[%emt 00:00:16] [%clk 00:00:21]}
e3 {[%emt 00:00:02] [%clk 00:00:29]} 34. d6 {[%emt 00:00:09] [%clk 00:00:14]}
Re6 {[%emt 00:00:02] [%clk 00:00:29]} 35. Qf7+ {[%emt 00:00:01] [%clk 00:00:16]}
Kxd6 {[%clk 00:00:30]} 36. Qf8+ {[%clk 00:00:17]} Kd7 {[%emt 00:00:04] [%clk
00:00:28]} 37. Qf7+ {[%emt 00:00:01] [%clk 00:00:18]} Re7 {[%emt 00:00:02] [%clk
00:00:28]} 38. Qd5+ {[%clk 00:00:19]} Kc8 {[%emt 00:00:02] [%clk 00:00:27]} 39.
Qc5+ {[%emt 00:00:02] [%clk 00:00:20]} Kd8 {[%clk 00:00:28]} 40. Qd5+ {[%emt
00:00:03] [%clk 00:00:19]} Kc7 {[%emt 00:00:05] [%clk 00:00:25]} 41. Qc5+ {[%emt
00:00:02] [%clk 00:00:19]} Kd7 {[%emt 00:00:01] [%clk 00:00:25]} 42. Qd5+ {[%clk
00:00:20]} Ke8 {[%emt 00:00:06] [%clk 00:00:22]} 43. Qg8+ {[%emt 00:00:01] [%clk
00:00:21]} Kd7 {[%emt 00:00:04] [%clk 00:00:19]} 44. Qd5+ {[%emt 00:00:02] [%clk
00:00:22]} 1/2-1/2

[Site "Europe Echecs"]